{"text_format":"3","workbook":"xlsx","n_sheets":3,"sheets":["Plantilla","Programación","Calendario"],"not_rendered":{"images":2,"defined_names":2},"read":"whole","date_system":"1900"}

{"sheet":"Plantilla","index":0,"n_rows":6,"n_cols":7,"rows_kept":6}
[]
[null,"The Emerald Sox"]
[null,"LISTA DEL EQUIPO"]
[]
[null,"N.º DE JUGADOR","NOMBRE","CUMPLEAÑOS","POSICIÓN","CORREO ELECTRÓNICO","TELÉFONO"]
[null,8,"Ariane Panetier","1989-04-06","2.ª base","ariane@example.com","415-555-0145"]

{"sheet":"Programación","index":1,"n_rows":6,"n_cols":6,"rows_kept":6}
[]
[null,{"$f":"NombreDelEquipo","v":"The Emerald Sox"}]
[null,"CALENDARIO DEL EQUIPO"]
[]
[null,"FECHA","EVENTO","RECINTO","ESTADO","COMENTARIOS"]
[null,{"$f":"IF(MONTH(TODAY())=12,TODAY()+92,TODAY())","v":"2024-04-15"},"Emerald Sox contra Rain City Rats","Estadio Premier","Programado","Día de apertura"]

{"sheet":"Calendario","index":2,"n_rows":17,"n_cols":15,"rows_kept":17}
[]
[null,{"$f":"NombreDelEquipo","v":"The Emerald Sox"},{"$nulls":12},{"$f":"DATE(H3,MONTH(G3&\"1\"),1)","v":{"$error":"#VALUE!"}}]
[null,"CALENDARIO DE PROGRAMACIÓN",{"$nulls":4},"Marzo",2024]
[]
[null,"LUN","MAR","MIÉ","JUE","VIE","SÁB","DOM",null,"LEYENDA"]
[null,{"$f":"IFERROR(PrimerDíaDelMes-WEEKDAY(PrimerDíaDelMes,2)+1,\"\")","v":""},{"$f":"IFERROR(B6+1,\"\")","v":""},{"$f":"IFERROR(C6+1,\"\")","v":""},"","","","",null,null,"PROGRAMADO"]
[null,{"$f":"IFERROR(IF(VLOOKUP(B6,Tabla2[[FECHA]:[EVENTO]],2,FALSE)<>\"\",VLOOKUP(B6,Tabla2[[FECHA]:[EVENTO]],2,FALSE),\"\"),\"\")","v":""},{"$f":"IFERROR(IF(VLOOKUP(C6,Tabla2[[FECHA]:[EVENTO]],2,FALSE)<>\"\",VLOOKUP(C6,Tabla2[[FECHA]:[EVENTO]],2,FALSE),\"\"),\"\")","v":""},{"$f":"IFERROR(IF(VLOOKUP(D6,Tabla2[[FECHA]:[EVENTO]],2,FALSE)<>\"\",VLOOKUP(D6,Tabla2[[FECHA]:[EVENTO]],2,FALSE),\"\"),\"\")","v":""},{"$f":"IFERROR(IF(VLOOKUP(E6,Tabla2[[FECHA]:[EVENTO]],2,FALSE)<>\"\",VLOOKUP(E6,Tabla2[[FECHA]:[EVENTO]],2,FALSE),\"\"),\"\")","v":""},{"$f":"IFERROR(IF(VLOOKUP(F6,Tabla2[[FECHA]:[EVENTO]],2,FALSE)<>\"\",VLOOKUP(F6,Tabla2[[FECHA]:[EVENTO]],2,FALSE),\"\"),\"\")","v":""},{"$f":"IFERROR(IF(VLOOKUP(G6,Tabla2[[FECHA]:[EVENTO]],2,FALSE)<>\"\",VLOOKUP(G6,Tabla2[[FECHA]:[EVENTO]],2,FALSE),\"\"),\"\")","v":""},{"$f":"IFERROR(IF(VLOOKUP(H6,Tabla2[[FECHA]:[EVENTO]],2,FALSE)<>\"\",VLOOKUP(H6,Tabla2[[FECHA]:[EVENTO]],2,FALSE),\"\"),\"\")","v":""},null,null,"PROVISIONAL"]
[null,{"$f":"IFERROR(H6+1,\"\")","v":""},{"$f":"IFERROR(B8+1,\"\")","v":""},{"$f":"IFERROR(C8+1,\"\")","v":""},"","","","",null,null,"COMPLETADO"]
[null,{"$f":"IFERROR(IF(VLOOKUP(B8,Tabla2[[FECHA]:[EVENTO]],2,FALSE)<>\"\",VLOOKUP(B8,Tabla2[[FECHA]:[EVENTO]],2,FALSE),\"\"),\"\")","v":""},{"$f":"IFERROR(IF(VLOOKUP(C8,Tabla2[[FECHA]:[EVENTO]],2,FALSE)<>\"\",VLOOKUP(C8,Tabla2[[FECHA]:[EVENTO]],2,FALSE),\"\"),\"\")","v":""},{"$f":"IFERROR(IF(VLOOKUP(D8,Tabla2[[FECHA]:[EVENTO]],2,FALSE)<>\"\",VLOOKUP(D8,Tabla2[[FECHA]:[EVENTO]],2,FALSE),\"\"),\"\")","v":""},{"$f":"IFERROR(IF(VLOOKUP(E8,Tabla2[[FECHA]:[EVENTO]],2,FALSE)<>\"\",VLOOKUP(E8,Tabla2[[FECHA]:[EVENTO]],2,FALSE),\"\"),\"\")","v":""},{"$f":"IFERROR(IF(VLOOKUP(F8,Tabla2[[FECHA]:[EVENTO]],2,FALSE)<>\"\",VLOOKUP(F8,Tabla2[[FECHA]:[EVENTO]],2,FALSE),\"\"),\"\")","v":""},{"$f":"IFERROR(IF(VLOOKUP(G8,Tabla2[[FECHA]:[EVENTO]],2,FALSE)<>\"\",VLOOKUP(G8,Tabla2[[FECHA]:[EVENTO]],2,FALSE),\"\"),\"\")","v":""},{"$f":"IFERROR(IF(VLOOKUP(H8,Tabla2[[FECHA]:[EVENTO]],2,FALSE)<>\"\",VLOOKUP(H8,Tabla2[[FECHA]:[EVENTO]],2,FALSE),\"\"),\"\")","v":""},null,null,"CANCELADO"]
[null,{"$f":"IFERROR(H8+1,\"\")","v":""},{"$f":"IFERROR(B10+1,\"\")","v":""},"","","","",""]
[null,{"$f":"IFERROR(IF(VLOOKUP(B10,Tabla2[[FECHA]:[EVENTO]],2,FALSE)<>\"\",VLOOKUP(B10,Tabla2[[FECHA]:[EVENTO]],2,FALSE),\"\"),\"\")","v":""},{"$f":"IFERROR(IF(VLOOKUP(C10,Tabla2[[FECHA]:[EVENTO]],2,FALSE)<>\"\",VLOOKUP(C10,Tabla2[[FECHA]:[EVENTO]],2,FALSE),\"\"),\"\")","v":""},{"$f":"IFERROR(IF(VLOOKUP(D10,Tabla2[[FECHA]:[EVENTO]],2,FALSE)<>\"\",VLOOKUP(D10,Tabla2[[FECHA]:[EVENTO]],2,FALSE),\"\"),\"\")","v":""},{"$f":"IFERROR(IF(VLOOKUP(E10,Tabla2[[FECHA]:[EVENTO]],2,FALSE)<>\"\",VLOOKUP(E10,Tabla2[[FECHA]:[EVENTO]],2,FALSE),\"\"),\"\")","v":""},{"$f":"IFERROR(IF(VLOOKUP(F10,Tabla2[[FECHA]:[EVENTO]],2,FALSE)<>\"\",VLOOKUP(F10,Tabla2[[FECHA]:[EVENTO]],2,FALSE),\"\"),\"\")","v":""},{"$f":"IFERROR(IF(VLOOKUP(G10,Tabla2[[FECHA]:[EVENTO]],2,FALSE)<>\"\",VLOOKUP(G10,Tabla2[[FECHA]:[EVENTO]],2,FALSE),\"\"),\"\")","v":""},{"$f":"IFERROR(IF(VLOOKUP(H10,Tabla2[[FECHA]:[EVENTO]],2,FALSE)<>\"\",VLOOKUP(H10,Tabla2[[FECHA]:[EVENTO]],2,FALSE),\"\"),\"\")","v":""}]
[null,{"$f":"IFERROR(H10+1,\"\")","v":""},{"$f":"IFERROR(B12+1,\"\")","v":""},"","","","",""]
[null,{"$f":"IFERROR(IF(VLOOKUP(B12,Tabla2[[FECHA]:[EVENTO]],2,FALSE)<>\"\",VLOOKUP(B12,Tabla2[[FECHA]:[EVENTO]],2,FALSE),\"\"),\"\")","v":""},{"$f":"IFERROR(IF(VLOOKUP(C12,Tabla2[[FECHA]:[EVENTO]],2,FALSE)<>\"\",VLOOKUP(C12,Tabla2[[FECHA]:[EVENTO]],2,FALSE),\"\"),\"\")","v":""},{"$f":"IFERROR(IF(VLOOKUP(D12,Tabla2[[FECHA]:[EVENTO]],2,FALSE)<>\"\",VLOOKUP(D12,Tabla2[[FECHA]:[EVENTO]],2,FALSE),\"\"),\"\")","v":""},{"$f":"IFERROR(IF(VLOOKUP(E12,Tabla2[[FECHA]:[EVENTO]],2,FALSE)<>\"\",VLOOKUP(E12,Tabla2[[FECHA]:[EVENTO]],2,FALSE),\"\"),\"\")","v":""},{"$f":"IFERROR(IF(VLOOKUP(F12,Tabla2[[FECHA]:[EVENTO]],2,FALSE)<>\"\",VLOOKUP(F12,Tabla2[[FECHA]:[EVENTO]],2,FALSE),\"\"),\"\")","v":""},{"$f":"IFERROR(IF(VLOOKUP(G12,Tabla2[[FECHA]:[EVENTO]],2,FALSE)<>\"\",VLOOKUP(G12,Tabla2[[FECHA]:[EVENTO]],2,FALSE),\"\"),\"\")","v":""},{"$f":"IFERROR(IF(VLOOKUP(H12,Tabla2[[FECHA]:[EVENTO]],2,FALSE)<>\"\",VLOOKUP(H12,Tabla2[[FECHA]:[EVENTO]],2,FALSE),\"\"),\"\")","v":""}]
[null,{"$f":"IFERROR(H12+1,\"\")","v":""},{"$f":"IFERROR(B14+1,\"\")","v":""},"","","","",""]
[null,{"$f":"IFERROR(IF(VLOOKUP(B14,Tabla2[[FECHA]:[EVENTO]],2,FALSE)<>\"\",VLOOKUP(B14,Tabla2[[FECHA]:[EVENTO]],2,FALSE),\"\"),\"\")","v":""},{"$f":"IFERROR(IF(VLOOKUP(C14,Tabla2[[FECHA]:[EVENTO]],2,FALSE)<>\"\",VLOOKUP(C14,Tabla2[[FECHA]:[EVENTO]],2,FALSE),\"\"),\"\")","v":""},{"$f":"IFERROR(IF(VLOOKUP(D14,Tabla2[[FECHA]:[EVENTO]],2,FALSE)<>\"\",VLOOKUP(D14,Tabla2[[FECHA]:[EVENTO]],2,FALSE),\"\"),\"\")","v":""},{"$f":"IFERROR(IF(VLOOKUP(E14,Tabla2[[FECHA]:[EVENTO]],2,FALSE)<>\"\",VLOOKUP(E14,Tabla2[[FECHA]:[EVENTO]],2,FALSE),\"\"),\"\")","v":""},{"$f":"IFERROR(IF(VLOOKUP(F14,Tabla2[[FECHA]:[EVENTO]],2,FALSE)<>\"\",VLOOKUP(F14,Tabla2[[FECHA]:[EVENTO]],2,FALSE),\"\"),\"\")","v":""},{"$f":"IFERROR(IF(VLOOKUP(G14,Tabla2[[FECHA]:[EVENTO]],2,FALSE)<>\"\",VLOOKUP(G14,Tabla2[[FECHA]:[EVENTO]],2,FALSE),\"\"),\"\")","v":""},{"$f":"IFERROR(IF(VLOOKUP(H14,Tabla2[[FECHA]:[EVENTO]],2,FALSE)<>\"\",VLOOKUP(H14,Tabla2[[FECHA]:[EVENTO]],2,FALSE),\"\"),\"\")","v":""}]
[null,{"$f":"IFERROR(H14+1,\"\")","v":""},{"$f":"IFERROR(B16+1,\"\")","v":""},"","","","",""]
[null,{"$f":"IFERROR(IF(VLOOKUP(B16,Tabla2[[FECHA]:[EVENTO]],2,FALSE)<>\"\",VLOOKUP(B16,Tabla2[[FECHA]:[EVENTO]],2,FALSE),\"\"),\"\")","v":""},{"$f":"IFERROR(IF(VLOOKUP(C16,Tabla2[[FECHA]:[EVENTO]],2,FALSE)<>\"\",VLOOKUP(C16,Tabla2[[FECHA]:[EVENTO]],2,FALSE),\"\"),\"\")","v":""},{"$f":"IFERROR(IF(VLOOKUP(D16,Tabla2[[FECHA]:[EVENTO]],2,FALSE)<>\"\",VLOOKUP(D16,Tabla2[[FECHA]:[EVENTO]],2,FALSE),\"\"),\"\")","v":""},{"$f":"IFERROR(IF(VLOOKUP(E16,Tabla2[[FECHA]:[EVENTO]],2,FALSE)<>\"\",VLOOKUP(E16,Tabla2[[FECHA]:[EVENTO]],2,FALSE),\"\"),\"\")","v":""},{"$f":"IFERROR(IF(VLOOKUP(F16,Tabla2[[FECHA]:[EVENTO]],2,FALSE)<>\"\",VLOOKUP(F16,Tabla2[[FECHA]:[EVENTO]],2,FALSE),\"\"),\"\")","v":""},{"$f":"IFERROR(IF(VLOOKUP(G16,Tabla2[[FECHA]:[EVENTO]],2,FALSE)<>\"\",VLOOKUP(G16,Tabla2[[FECHA]:[EVENTO]],2,FALSE),\"\"),\"\")","v":""},{"$f":"IFERROR(IF(VLOOKUP(H16,Tabla2[[FECHA]:[EVENTO]],2,FALSE)<>\"\",VLOOKUP(H16,Tabla2[[FECHA]:[EVENTO]],2,FALSE),\"\"),\"\")","v":""}]